Workbook

Sheet Rekenblad
A1: ="Melding en berekening straatwerk" & MID('Tabel Tarieven'!K1,10,5) -> Melding en berekening straatwerk 2021 | M1: ="Versie "&MID('Tabel Tarieven'!K1,11,8) -> Versie 2021 v1
A2: volgens de Richtlijn Tarieven (graaf) werkzaamheden Telecom dd 12-03-2004. | L2: Datum: | M2: =NOW() -> 2020-12-04T08:45:50.230
A3: AANVRAGER: | B3: ………………………………. | E3: Adres: | F3: …………………………………………………………………… | K3: Contactpersoon: | M3: ………………………………………
A4: NAAM PROJECT: | B4: ………………………………………………………………………………………………….. | H4: Ref.nr: | I4: ………………………………………………………………………………………………….. | K4: E-mail: | L4: …………..………………………………………..
A5: PLAATS: | B5: ………………………………………………………………………………………………….. | M5: ………………………………………
A6: GEMEENTE: | E6: adres: | F6: =IF($B$7>0.1,VLOOKUP(B7,'Gemeenten met categorie'!A3:D484,4),"") -> Postbus 93, 9460 AB GIETEN | L6: Telefoon: | M6: ………………………………………
B7: 1 | D7: =IF($B$7>0.1,VLOOKUP($B$7,'Gemeenten met categorie'!A2:D493,3),"") -> 1
A8: Uitvoering:
A9: 1
A10: Gemeentelijke gegevens: | D10: Verzamelde informatie: | H10: Toegepast tarief | M10: Bedrag:
A11: Contactpersoon gem.: | B11: ……………………… | D11: Inkoopordernr.: | F11: Projectnr: | H11: =INDEX('Gemeenten met categorie'!D499:D504,A9,1) -> Tarief A: Herstel en onderhoud uitgevoerd door de gemeente | M11: Uitv.k | N11: =SUM(J38:J51) -> 0
A12: E-mail: | B12: ……………………… | D12: ……………… | F12: ……………. | M12: Onderh.k | N12: =SUM(K38:K51) -> 0
A13: telefoon: | B13: ……………………… | D13: Datum opbreking: | F13: ……………….. | M13: Deg.kst. | N13: =SUM(L38:L51) -> 0
A14: mobiel: | B14: ……………………… | D14: Datum herstel: | F14: ……………….. | M14: Beheer.k | N14: =SUM(M38:M51) -> 0
A15: Opdrachtnummer : | B15: ……………………… | D15: Deellevering: | F15: ……………….. | H15: =INDEX('Gemeenten met categorie'!D499:F504,A9,2) -> 0 | M15: Bomen/str | N15: =N28 -> 0
A16: In te vullen gegevens: | D16: Laatste levering: | F16: ……………….. | M16: Asfalt | N16: =N33 -> 0
A17: = Richtlijn tarief | D17: Uitvoerende aannemer: | F17: ………………..
A18: = Af te spreken projectprijs | F18: …………………
F19: ………………… | H19: Totaal kosten: | M19: =+SUM(N11:N17) -> 0
A20: OMSCHRIJVING STRAATWERK / BERMEN; | N20: =IF(ROUND(SUM(N38:N51),2)-ROUND(M19,2)<>0,"Fout in formulier","") -> 
A21: =+IF(AND(D25>0,D25<0.3),("invoer fout breedte tegels"),IF(AND(D26>0,D26<0.3),("invoer fout breedte tegels"),IF(AND(D27>0,D27<0.3),("invoer fout breedte tegels"),""))) ->  | C21: Sleuf | I21: Opsluiting | L21: Bomen en Struiken
A22: =+IF(AND(G25>0,G25<0.25),("invoer fout breedte klinkers"),IF(AND(G26>0,G26<0.25),("invoer fout breedte klinkers"),IF(AND(G27>0,G27<0.25),("invoer fout breedte klinkers"),""))) ->  | C22: Tegels | F22: Klinkers | I22: trottoir-banden: | J22: opsluit- / koprolband
A24: adres | C24: lengte | D24: breedte | E24: m2 | F24: lengte | G24: breedte | H24: m2 | I24: m1 | J24: m1 | L24: eenh. | M24: prijs | N24: kosten
A25: …………………………………. | E25: =IF($D$25>=0.3,($C$25*$D$25),"") ->  | H25: =IF($G$25>=0.25,($F$25*$G$25),"") ->  | N25: =IF($L25>0,$M25*($L25+0),"") -> 
A26: …………………………………. | E26: =IF($D$26>=0.3,($C$26*$D$26),"") ->  | H26: =IF($G$26>=0.25,($F$26*$G$26),"") ->  | N26: =IF($L26>0,$M26*($L26+0),"") -> 
A27: …………………………………. | E27: =IF($D$27>=0.3,($C$27*$D$27),"") ->  | H27: =IF($G$27>=0.25,($F$27*$G$27),"") ->  | N27: =IF($L27>0,$M27*($L27+0),"") -> 
C28: =MAX(C25:D25)+MAX(C26:D26)+MAX(C27:D27) -> 0 | E28: =SUM(E25:E27) -> 0 | F28: =MAX(F25:G25)+MAX(F26:G26)+MAX(F27:G27) -> 0 | H28: =SUM(H25:H27) -> 0 | I28: =SUM(I25:I27) -> 0 | J28: =SUM(J25:K27) -> 0 | L28: =SUM(L25:L27) -> 0 | N28: =SUM(N25:N27) -> 0
C29: Bermen, gazon herstel door gemeente | F29: Bermen, gazon herstel door aanbieder | I29: Asfalt, all in* | L29: Dikte | M29: Prijs | N29: Asfalt
A30: adres | C30: lengte | D30: breedte | E30: m2 | F30: lengte | G30: breedte | H30: m2 | I30: lengte (m) | J30: breedte (m) | L30: cm | M30: m2/cm | N30: kosten
A31: ………………………………… | E31: =IF(C31>0,C31*(D31+0),"") ->  | H31: =IF(F31>0,F31*(G31+0),"") ->  | N31: =IF($I31>0,($I$31*$J$31*$L$31)*($M$31),"") -> 
A32: ………………………………… | E32: =IF(C32>0,C32*(D32+0),"") ->  | H32: =IF(F32>0,F32*(G32+0),"") ->  | N32: =IF($I32>0,($I$32*$J$32*$L$32)*($M$32),"") -> 
E33: =SUM(E31:E32) -> 0 | H33: =SUM(H30:H32) -> 0 | I33: =SUM(I30:I32) -> 0 | J33: =SUM(J30:K32) -> 0 | N33: =SUM(N31:N32) -> 0
A34: Specificatie: | C34: * de gedefinieerde sleufbreedte dient te worden aangegeven, voor netbeheerders (niet zijnde aanbieders volgens Telecommunicatiewet) geldt de (gemiddelde) breedte van de opgebroken bestrating. In de tarieven is de gatvergroting meegerekend door een toeslag van 20%.
A35: Tarief: | B35: =A9 -> 1
A36: Categorie: | B36: =VLOOKUP(B7,'Gemeenten met categorie'!$A$3:$C$393,3,FALSE) -> 1 | E36: Kosten per eenheid | G36: Degeneratiekosten | I36: Beheerk. | J36: Subtotaal | N36: Totaal regel
A37: Omschrijving | B37: Hoeveelheid | C37: Eenheid | D37: Sleuf m1 | E37: Uitv.kst | F37: Onderh.k | G37: Per rep. | H37: Per m1 | I37: per eenheid | J37: Uitv.k. | K37: Onderh.k | L37: Deg.kst. | M37: Beheer.k
A38: klinkers <= 15 m2 | B38: =IF($H$28<=15,$H$28,0) -> 0 | C38: m2 | E38: =IF($B$38>0,'Tabel Tarieven'!$R6,0) -> 0 | F38: =IF($B38>0,'Tabel Tarieven'!$R22,0) -> 0 | G38: =IF($B38>0,'Tabel Tarieven'!$R28,0) -> 0 | I38: =IF($B38>0,'Tabel Tarieven'!$R34,0) -> 0 | J38: =E38*B38 -> 0 | K38: =F38*B38 -> 0 | L38: =G38 -> 0 | M38: =I38*B38 -> 0 | N38: =+SUM(J38:M38) -> 0
A39: klinkers >15 m2 | B39: =IF($H$28>15,IF($B$35=1,IF($H$28<=100,$H$28,0),$H$28),0) -> 0 | C39: m2 | D39: =IF(B39>0,$F$28,0) -> 0 | E39: =IF(B39>0,'Tabel Tarieven'!$R7,0) -> 0 | F39: =IF($B39>0,'Tabel Tarieven'!$R23,0) -> 0 | H39: =IF($B39>0,'Tabel Tarieven'!$R29,0) -> 0 | I39: =IF($B39>0,'Tabel Tarieven'!$R35,0) -> 0 | J39: =E39*B39 -> 0 | K39: =F39*B39 -> 0 | L39: =H39*D39 -> 0 | M39: =I39*B39 -> 0 | N39: =+SUM(J39:M39) -> 0
A40: klinkers >100 m2 (alleen A) | B40: =IF($B$35=1,IF($H$28>100,$H$28,0),0) -> 0 | C40: m2 | D40: =IF(B40>0,$F$28,0) -> 0 | E40: =IF(B40>0,'Tabel Tarieven'!$R8,0) -> 0 | F40: =IF($B40>0,'Tabel Tarieven'!$R24,0) -> 0 | H40: =IF($B40>0,'Tabel Tarieven'!$R30,0) -> 0 | I40: =IF($B40>0,'Tabel Tarieven'!$R36,0) -> 0 | J40: 0 | K40: 0 | L40: =H40*D40 -> 0 | M40: 0 | N40: 0
A41: tegels <= 15 m2 | B41: =IF($E$28<=15,$E$28,0) -> 0 | C41: m2 | E41: =IF(B41>0,'Tabel Tarieven'!$R9,0) -> 0 | F41: =IF($B41>0,'Tabel Tarieven'!$R25,0) -> 0 | G41: =IF($B41>0,'Tabel Tarieven'!$R31,0) -> 0 | I41: =IF($B41>0,'Tabel Tarieven'!$R37,0) -> 0 | J41: 0 | K41: 0 | L41: =G41 -> 0 | M41: 0 | N41: 0
A42: tegels >15 m2 | B42: =IF($E$28>15,IF($B$35=1,IF($E$28<=100,$E$28,0),$E$28),0) -> 0 | C42: m2 | D42: =IF(B42>0,$C$28,0) -> 0 | E42: =IF(B42>0,'Tabel Tarieven'!$R10,0) -> 0 | F42: =IF($B42>0,'Tabel Tarieven'!$R26,0) -> 0 | H42: =IF($B42>0,'Tabel Tarieven'!$R32,0) -> 0 | I42: =IF($B42>0,'Tabel Tarieven'!$R38,0) -> 0 | J42: 0 | K42: 0 | L42: =H42*D42 -> 0 | M42: 0 | N42: 0
A43: tegels >100 m2 (alleen A) | B43: =IF($B$35=1,IF($E$28>100,$E$28,0),0) -> 0 | C43: m2 | D43: =IF(B43>0,$C$28,0) -> 0 | E43: =IF(B43>0,'Tabel Tarieven'!$R11,0) -> 0 | F43: =IF($B43>0,'Tabel Tarieven'!$R27,0) -> 0 | H43: =IF($B43>0,'Tabel Tarieven'!$R33,0) -> 0 | I43: =IF($B43>0,'Tabel Tarieven'!$R39,0) -> 0 | J43: 0 | K43: 0 | L43: =H43*D43 -> 0 | M43: 0 | N43: 0
A44: trottoirband | B44: =I28 -> 0 | C44: m1 | E44: =IF($B44>0,'Tabel Tarieven'!$R12,0) -> 0 | I44: =IF($B44>0,'Tabel Tarieven'!$R40,0) -> 0 | J44: 0 | M44: 0 | N44: 0
A45: opsluit/koprolband | B45: =J28 -> 0 | C45: m1 | E45: =IF($B45>0,'Tabel Tarieven'!$R13,0) -> 0 | I45: =IF($B45>0,'Tabel Tarieven'!$R41,0) -> 0 | J45: 0 | M45: 0 | N45: 0
A46: Berm/gaz, herst gem.<=15m2 | B46: =IF(E33<=15,E33,0) -> 0 | C46: reparatie | E46: =IF($B46>0,'Tabel Tarieven'!$R20,0) -> 0 | I46: =IF($B46>0,'Tabel Tarieven'!R44,0) -> 0 | J46: =IF(E46>0,E46,0) -> 0 | M46: =IF(I46>0,I46,0) -> 0 | N46: 0
A47: Berm/gaz, herst aanb<=15m2 | B47: =IF(H33<=15,H33,0) -> 0 | C47: reparatie | I47: =IF($B47>0,'Tabel Tarieven'!R44,0) -> 0 | M47: =IF(I47>0,I47,0) -> 0 | N47: 0
A48: Berm/gaz, herst gem. >15m2 | B48: =IF(E33>15,E33,0) -> 0 | C48: m2 | E48: =IF($B48>0,'Tabel Tarieven'!$R21,0) -> 0 | I48: =IF($B48>0,'Tabel Tarieven'!R45,0) -> 0 | J48: =E48*B48 -> 0 | M48: =I48*B48 -> 0 | N48: 0
A49: Berm/gaz, herst aanb. >15m2 | B49: =IF(H33>15,H33,0) -> 0 | C49: m2 | I49: =IF($B49>0,'Tabel Tarieven'!R45,0) -> 0 | J49: 0 | M49: 0 | N49: 0
A50: Bomen en struiken | C50: St. | E50: =IF($B50>0,'Tabel Tarieven'!$R16,0) -> 0 | I50: =IF($B50>0,'Tabel Tarieven'!R46,0) -> 0 | M50: =I50*B50 -> 0 | N50: =N28 -> 0
A51: Asfalt | B51: =(I31*J31)+I32*J32 -> 0 | C51: m2 | E51: =IF($B51>0,'Tabel Tarieven'!$R17,0) -> 0 | I51: 0 | M51: =I51*B51 -> 0 | N51: =N33 -> 0
A54: Naam en paraaf budgethouder: | C54: =M3 -> ……………………………………… | E54: d.d. | F54: =M2 -> 2020-12-04T08:45:50.230 | I54: Afgewerk d.d. | J54: …………………………………………
A56: Factuuradres: | B56: ……………………………………………………………………………………………………….
M88: =IF(AND($A$9>1,$A$9<4,$E$28<=15),('Gemeenten met categorie'!#REF!),"") -> 

Sheet Gemeenten met categorie
B1: De Gemeenten van Nederland per 01-01-2020
B2: Gemeente: | C2: Indeling:
A3: 1 | B3: Aa en Hunze | C3: 1 | D3: Postbus 93, 9460 AB GIETEN
A4: 2 | B4: Aalsmeer | C4: 2 | D4: Postbus 253, 1430 AG AALSMEER
A5: 3 | B5: Aalten | C5: 1 | D5: Postbus 119, 7120 AC AALTEN
A6: 4 | B6: Achterkarspelen | C6: 1 | D6: Postbus 2, 9285 ZV BUITENPOST
A7: 5 | B7: Alblasserdam | C7: 5 | D7: Postbus 2, 2950 AA ALBLASSERDAM
A8: 6 | B8: Albrandswaard | C8: 2 | D8: Postbus 1000, 3160 GA RHOON
A9: 7 | B9: Alkmaar | C9: 1 | D9: Postbus 53, 1800 BC ALKMAAR
A10: 8 | B10: Almelo | C10: 1 | D10: Postbus 5100, 7600 GC ALMELO
A11: 9 | B11: Almere | C11: 3 | D11: Postbus 200, 1300 AE ALMERE
A12: 10 | B12: Alphen aan de Rijn | C12: 5 | D12: Postbus 13, 2400 AA ALPHEN AAN DE RIJN
A13: 11 | B13: Alphen-Chaam | C13: 1 | D13: Postbus 3, 5130 AA ALPHEN
A14: 12 | B14: Altena | C14: 1 | D14: Sportlaan 170, 4286 ET ALMKERK
A15: 13 | B15: Ameland | C15: 1 | D15: Postbus 22, 9160 AA HOLLUM
A16: 14 | B16: Amersfoort | C16: 1 | D16: Postbus 4000, 3800 EA AMERSFOORT
A17: 15 | B17: Amstelveen | C17: 5 | D17: Postbus 4, 1180 BA AMSTELVEEN
A18: 16 | B18: Amsterdam | C18: 3 | D18: Postbus 202, 1000 AE AMSTERDAM
A19: 17 | B19: Apeldoorn | C19: 1 | D19: Postbus 9033, 7300 ES APELDOORN
A20: 18 | B20: Appingedam | C20: 5 | D20: Postbus 15, 9900 AA APPINGEDAM
A21: 19 | B21: Arnhem | C21: 1 | D21: Postbus 9029, 6800 EL ARNHEM
A22: 20 | B22: Assen | C22: 1 | D22: Postbus 30018, 9400 RA ASSEN
A23: 21 | B23: Asten | C23: 1 | D23: Postbus 290, 5720 AG ASTEN
A24: 22 | B24: Baarle-Nassau | C24: 1 | D24: Postbus 105, 5110 AC BAARLE-NASSAU
A25: 23 | B25: Baarn | C25: 1 | D25: Postbus 1003, 3740 BA BAARN
A26: 24 | B26: Barendrecht | C26: 5 | D26: Postbus 501, 2990 EA BARENDRECHT
A27: 25 | B27: Barneveld | C27: 1 | D27: Postbus 63, 3770 AB BARNEVELD
A28: 26 | B28: Beek | C28: 1 | D28: Postbus 20, 6190 AA BEEK
A29: 27 | B29: Beekdaelen | C29: 1 | D29: Postbus 22000, 6360 AA NUTH
A30: 28 | B30: Beemster | C30: 4 | D30: Postbus 7, 1462 ZG MIDDENBEEMSTER
A31: 29 | B31: Beesel | C31: 1 | D31: Postbus 4750, 5953 ZK REUVER
A32: 30 | B32: Berg en Dal | C32: 1 | D32: Postbus 20, 6560 AA GROESBEEK
A33: 31 | B33: Bergeijk | C33: 1 | D33: Postbus 10000, 5570 GA BERGEIJK
A34: 32 | B34: Bergen (L.) | C34: 1 | D34: Postbus 140, 5854 ZJ BERGEN (L.)
A35: 33 | B35: Bergen (NH.) | C35: 1 | D35: Postbus 175, 1860 AD BERGEN (NH.)
A36: 34 | B36: Bergen op Zoom | C36: 1 | D36: Postbus 35, 4600 AA BERGEN OP ZOOM
A37: 35 | B37: Berkelland | C37: 1 | D37: Postbus 200, 7270 HA BORCULO
A38: 36 | B38: Bernheze | C38: 1 | D38: Postbus 19, 5384 ZG HEESH
A39: 37 | B39: Best | C39: 1 | D39: Postbus 50, 5680 AB BEST
A40: 38 | B40: Beuningen | C40: 1 | D40: Postbus 14, 6640 AA BEUNINGEN
A41: 39 | B41: Beverwijk | C41: 1 | D41: Postbus 450, 1940 AL BEVERWIJK
A42: 40 | B42: Bladel | C42: 1 | D42: Postbus 11, 5530 AA BLADEL
A43: 41 | B43: Blaricum | C43: 1 | D43: Postbus 125, 1260 AC BLARICUM
A44: 42 | B44: Bloemendaal | C44: 1 | D44: Postbus 201, 2050 AE OVERVEEN
A45: 43 | B45: Bodegraven-Reeuwijk | C45: 5 | D45: Postbus 401, 2410 AK BODEGRAVEN
A46: 44 | B46: Boekel | C46: 1 | D46: Postbus 99, 5427 ZH BOEKEL
A47: 45 | B47: Borger-Odoorn | C47: 1 | D47: Postbus 3, 7875 ZG EXLOO
A48: 46 | B48: Borne | C48: 1 | D48: Postbus 200, 7620 AE BORNE
A49: 47 | B49: Borsele | C49: 1 | D49: Postbus 1, 4450 AA HEINKENSZAND
A50: 48 | B50: Boxmeer | C50: 1 | D50: Postbus 450, 5830 AL BOXMEER
A51: 49 | B51: Boxtel | C51: 1 | D51: Postbus 10000, 5280 DA BOXTEL
A52: 50 | B52: Breda | C52: 1 | D52: Postbus 90156, 4800 RH BREDA
A53: 51 | B53: Brielle | C53: 1 | D53: Postbus 101, 3230 AC BRIELLE
A54: 52 | B54: Bronckhorst | C54: 1 | D54: Postbus 200, 7255 ZJ HENGELO
A55: 53 | B55: Brummen | C55: 1 | D55: Postbus 5, 6970 BV BRUMMEN
A56: 54 | B56: Brunssum | C56: 1 | D56: Postbus 250, 6440 AG BRUNSSUM
A57: 55 | B57: Bunnik | C57: 1 | D57: Postbus 5, 3980 CA BUNNINK
A58: 56 | B58: Bunschoten | C58: 1 | D58: Postbus 200, 3750 GE BUNSCHOTEN
A59: 57 | B59: Buren | C59: 1 | D59: Postbus 15, 4033 ZG LIENDEN
A60: 58 | B60: Capelle aan den IJssel | C60: 5 | D60: Postbus 70, 2900 AB CAPELLE AAN DE IJSSEL
A61: 59 | B61: Castircum | C61: 1 | D61: Postbus 1301, 1900 BH CASTRICUM
A62: 60 | B62: Coevorden | C62: 1 | D62: Postbus 2, 7740 AA COEVORDEN
A63: 61 | B63: Cranendonck | C63: 1 | D63: Postbus 2090, 6020 AB BUDEL
A64: 62 | B64: Cuijk | C64: 1 | D64: Postbus 10001, 5430 DA CUIJK
A65: 63 | B65: Culemborg | C65: 3 | D65: Postbus 136, 4100 AC CULEMBERG
A66: 64 | B66: Dalfsen | C66: 1 | D66: Postbus 35, 7720 AA DALSEN
A67: 65 | B67: Dantumadeel | C67: 1 | D67: Postbus 22, 9104 BR DAMWOUDE
A68: 66 | B68: De Bilt | C68: 1 | D68: Postbus 300, 3720 AH BILTHOVEN
A69: 67 | B69: De Fryske Marren | C69: 1 | D69: Postbus 101, 8500 AC JOURE
A70: 68 | B70: De Ronde Venen | C70: 2 | D70: Postbus 250, 3640 AG MIJDRECHT
A71: 69 | B71: De Wolden | C71: 1 | D71: Postbus 20, 7920 AA ZUIDWOLDE
A72: 70 | B72: Delft | C72: 4 | D72: Postbus 78, 2600 ME DELFT
A73: 71 | B73: Delfzijl | C73: 3 | D73: Postbus 20000, 9930 PA DELFZIJL
A74: 72 | B74: Den Haag | C74: 1 | D74: Postbus 12600, 2500 DJ DEN HAAG
A75: 73 | B75: Den Helder | C75: 1 | D75: Postbus 36, 1780 AA DEN HELDER
A76: 74 | B76: Deurne | C76: 1 | D76: Postbus 3, 5750 AA DEURNE
A77: 75 | B77: Deventer | C77: 1 | D77: Postbus 5000, 7400GC DEVENTER
A78: 76 | B78: Diemen | C78: 5 | D78: Postbus 191, 1110 AD DIEMEN
A79: 77 | B79: Dinkelland | C79: 1 | D79: Postbus 11, 7590 AA DENEKAMP
A80: 78 | B80: Doesburg | C80: 1 | D80: Postbus 100, 6980 AC DOESBURG
A81: 79 | B81: Doetinchem | C81: 1 | D81: Postbus 9020, 7000 HA DOETINCHEM
A82: 80 | B82: Dongen | C82: 1 | D82: Postbus 10153, 5100 GE DONGEN
A83: 81 | B83: Dordrecht | C83: 1 | D83: Postbus 8, 3300 AA DORDRECHT
A84: 82 | B84: Drechterland | C84: 4 | D84: Postbus 9, 1616 ZG HOOGKARSPEL
A85: 83 | B85: Drimmelen | C85: 1 | D85: Postbus 19, 4920 AA MADE
A86: 84 | B86: Dronten | C86: 1 | D86: Postbus 100, 8250 AC DRONTEN
A87: 85 | B87: Druten | C87: 1 | D87: Postbus 1, 6650 AA DRUTEN
A88: 86 | B88: Duiven | C88: 1 | D88: Postbus 6, 6920 AA DUIVEN
A89: 87 | B89: Echt-Susteren | C89: 1 | D89: Postbus 450, 6100 AL ECHT
A90: 88 | B90: Edam-Volendam | C90: 5 | D90: Postbus 180, 1130 AD VOLENDAM
A91: 89 | B91: Ede | C91: 1 | D91: Postbus 9022, 6710 HK EDE
A92: 90 | B92: Eemnes | C92: 1 | D92: Postbus 71, 3755 AN EEMNES
A93: 91 | B93: Eersel | C93: 1 | D93: Postbus 12, 5520 AA EERSEL
A94: 92 | B94: Eijsden-Margraten | C94: 1 | D94: Postbus 10, 6269 ZG MARGRATEN
A95: 93 | B95: Eindhoven | C95: 1 | D95: Postbus 90150, 5600 RB EINDHOVEN
A96: 94 | B96: Elburg | C96: 1 | D96: Postbus 70, 8080 AB ELBURG
A97: 95 | B97: Emmen | C97: 1 | D97: Postbus 3001, 7800 AA EMMEN
A98: 96 | B98: Enkhuizen | C98: 4 | D98: Postbus 11, 1600 AA ENKHUIZEN
A99: 97 | B99: Enschede | C99: 1 | D99: Postbus 20, 7500 AA ENSCHEDE
A100: 98 | B100: Epe | C100: 1 | D100: Postbus 600, 8160 AP EPE
A101: 99 | B101: Ermelo | C101: 1 | D101: Postbus 500, 3850 AM ERMELO
A102: 100 | B102: Etten-Leur | C102: 1 | D102: Postbus 10100, 4870 GA ETTEN-LEUR
A103: 101 | B103: Geertruidenberg | C103: 1 | D103: Postbus 10001, 4940 GA RAAMSDONKSVEER
A104: 102 | B104: Geldrop-Mierlo | C104: 1 | D104: Postbus 10101, 5660 GA GELDROP
A105: 103 | B105: Gemert-Bakel | C105: 1 | D105: Postbus 10000, 5420 DA GEMERT
A106: 104 | B106: Gennep | C106: 1 | D106: Postbus 9003, 6590 HD GENNEP
A107: 105 | B107: Gilze en Rijen | C107: 1 | D107: Postbus 73, 5120 AB RIJEN
A108: 106 | B108: Goeree-Overflakkee | C108: 1 | D108: Postbus 1, 3240 AA MIDDELHARNIS
A109: 107 | B109: Goes | C109: 1 | D109: Postbus 2118, 4460 MC GOES
A110: 108 | B110: Goirle | C110: 1 | D110: Postbus 17, 5050 AA GOIRLE
A111: 109 | B111: Gooise Meren | C111: 1 | D111: Postbus 6000, 1400 HA BUSSUM
A112: 110 | B112: Gorichem | C112: 5 | D112: Postbus 108, 4200 AC GORINCHEM
A113: 111 | B113: Gouda | C113: 5 | D113: Postbus 1086, 2800 BB GOUDA
A114: 112 | B114: Grave | C114: 1 | D114: Postbus 7, 5360 AA GRAVE
A115: 113 | B115: Groningen | C115: 1 | D115: Postbus 2001, 9700 PB GRONINGEN
A116: 114 | B116: Gulpen-Wittem | C116: 1 | D116: Postbus 56, 6270 AB GULPEN
A117: 115 | B117: Haaksbergen | C117: 1 | D117: Postbus 102, 7480 AC HAAKSBERGEN
A118: 116 | B118: Haaren | C118: 1 | D118: Postbus 44, 5076 ZG HAAREN
A119: 117 | B119: Haarlem | C119: 1 | D119: Postbus 511, 2003 PB HAARLEM
A120: 118 | B120: Haarlemmermeer | C120: 2 | D120: Postbus 250, 2130 AG HOOFDDORP
A121: 119 | B121: Halderberge | C121: 1 | D121: Postbus 5, 4730 AA OUDENBOSCH
A122: 120 | B122: Hardenberg | C122: 1 | D122: Postbus 500, 7770 BA HARDENBERG
A123: 121 | B123: Harderwijk | C123: 1 | D123: Postbus 149, 3840 AC HARDERWIJK
A124: 122 | B124: Hardinxveld-Giessendam | C124: 5 | D124: Postbus 175, 3370 AD HARDINXVELD-GIESSENDAM
A125: 123 | B125: Harlingen | C125: 1 | D125: Postbus 10000, 8860 HA HARLINGEN
A126: 124 | B126: Hattem | C126: 1 | D126: Postbus 93, 8050 AB HATTUM
A127: 125 | B127: Heemskerk | C127: 1 | D127: Postbus 39, 1960 AA HEEMSKERK
A128: 126 | B128: Heemstede | C128: 1 | D128: Postbus 352, 2100 AJ HEEMSTEDE
A129: 127 | B129: Heerde | C129: 1 | D129: Postbus 175, 8180 AD HEERDE
A130: 128 | B130: Heerenveen | C130: 1 | D130: Postbus 15000, 8440 GA HEERENVEEN
A131: 129 | B131: Heerhugowaard | C131: 1 | D131: Postbus 390, 1700 AJ HEERHUGOWAARD
A132: 130 | B132: Heerlen | C132: 1 | D132: Postbus 1, 6400 AA HEERLEN
A133: 131 | B133: Heeze-Leende | C133: 1 | D133: Postbus 10000, 5590 GA HEEZE
A134: 132 | B134: Heiloo | C134: 1 | D134: Postbus 1, 1850 AA HEILOO
A135: 133 | B135: Hellendoorn | C135: 1 | D135: Postbus 200, 7440 AE NIJVERDAL
A136: 134 | B136: Hellevoetsluis | C136: 1 | D136: Postbus 13, 3220 AA HELLEVOETSLUIS
A137: 135 | B137: Helmond | C137: 1 | D137: Postbus 950, 5700 AZ HELMOND
A138: 136 | B138: Hendrik-Ido-Ambacht | C138: 4 | D138: Postbus 34, 3340 AA HENDRIK-IDO-AMBACHT
A139: 137 | B139: Hengelo (O.) | C139: 1 | D139: Postbus 18, 7550 AA HENGELO
A140: 138 | B140: Heumen | C140: 1 | D140: Postbus 200, 6800 AZ MALDEN
A141: 139 | B141: Heusden | C141: 1 | D141: Postbus 31, 5250 AA VLIJMEN
A142: 140 | B142: Hillegom | C142: 1 | D142: Postbus 32, 2180 AA HILLEGOM
A143: 141 | B143: Hilvarenbeek | C143: 1 | D143: Postbus 3, 5080 AA HILVARENBEEK
A144: 142 | B144: Hilversum | C144: 1 | D144: Postbus 9900, 12101 GM HILVERSUM
A145: 143 | B145: Hoeksche Waard | C145: 2 | D145: Postbus 2003, 3260 EA OUD-BEIJERLAND
A146: 144 | B146: Hof van Twente | C146: 1 | D146: Postbus 54, 7470 AB GOOR
A147: 145 | B147: Het Hogeland | C147: 1 | D147: Postbus 26, 9980 AA UITHUIZEN
A148: 146 | B148: Hollands Kroon | C148: 1 | D148: Postbus 8, 1760 AA ANNA PAULOWNA
A149: 147 | B149: Hoogeveen | C149: 1 | D149: Postbus 20000, 7900 PA HOOGEVEEN
A150: 148 | B150: Hoorn | C150: 5 | D150: Postbus 603, 1620 AR HOORN
A151: 149 | B151: Horst aan de Maas | C151: 1 | D151: Postbus 6005, 5960 AA HORST
A152: 150 | B152: Houten | C152: 1 | D152: Postbus 30, 3990 DA HOUTEN
A153: 151 | B153: Huizen | C153: 1 | D153: Postbus 5, 1270 AA HUIZEN
A154: 152 | B154: Hulst | C154: 1 | D154: Postbus 49, 4560 AA HULST
A155: 153 | B155: IJsselstein | C155: 1 | D155: Postbus 26, 3400 AA IJSSELSTEIN
A156: 154 | B156: Kaag en Braassem | C156: 3 | D156: Postbus 1, 2370 AA ROELOFARENDSVEEN
A157: 155 | B157: Kampen | C157: 1 | D157: Postbus 5009, 8260 GA KAMPEN
A158: 156 | B158: Kapelle | C158: 1 | D158: Postbus 79, 4420 AC KAPELLE
A159: 157 | B159: Katwijk | C159: 1 | D159: Postbus 589, 2220 AN KATWIJK
A160: 158 | B160: Kerkrade | C160: 1 | D160: Postbus 600, 6460 AP KERKRADE
A161: 159 | B161: Koggenland | C161: 5 | D161: Postbus 21 1633 ZG AVENHORN
A162: 160 | B162: Krimpen aan den IJssel | C162: 5 | D162: Postbus 200, 2922 AE KRIMPEN AAN DE IJSSEL
A163: 161 | B163: Krimpenerwaard | C163: 5 | D163: Postbus 51, 2820 AB STOLWIJK
A164: 162 | B164: Laarbeek | C164: 1 | D164: Postbus 190, 5740 AD BEEK EN DONK
A165: 163 | B165: Landerd | C165: 1 | D165: Postbus 35, 5410 AA ZEELAND
A166: 164 | B166: Landgraaf | C166: 1 | D166: Postbus 31000, 6370 AA LANDGRAAF
A167: 165 | B167: Landsmeer | C167: 5 | D167: Postbus 1, 1120 AA LANDSMEER
A168: 166 | B168: Langedijk | C168: 1 | D168: Postbus 15, 1723 ZG NOORD-SCHARWOUDE
A169: 167 | B169: Lansingerland | C169: 5 | D169: Postbus 1, 2650 AA BERKEL & RODENRIJS
A170: 168 | B170: Laren | C170: 1 | D170: Postbus 5, 1250 AA LAREN
A171: 169 | B171: Leeuwarden | C171: 1 | D171: Postbus 21000, 8900 JA LEEUWARDEN
A172: 170 | B172: Leiden | C172: 1 | D172: Postbus 9100, 2300 PC LEIDEN
A173: 171 | B173: Leiderdorp | C173: 3 | D173: Postbus 35, 2353 AA LEIDERDORP
A174: 172 | B174: Leidschendam-Voorburg | C174: 1 | D174: Postbus 905, 2270 AX VOORBURG
A175: 173 | B175: Lelystad | C175: 1 | D175: Postbus 91, 8200 AB LELYSTAD
A176: 174 | B176: Leudal | C176: 1 | D176: Postbus 3008, 6093 ZG HEYTHUYSEN
A177: 175 | B177: Leusden | C177: 1 | D177: Postbus 150, 3830 AD LEUSDEN
A178: 176 | B178: Lingewaard | C178: 1 | D178: Postbus 15, 6680 AA BEMMEL
A179: 177 | B179: Lisse | C179: 1 | D179: Postbus 200, 2160 AE LISSE
A180: 178 | B180: Lochem | C180: 1 | D180: Postbus 17, 7240 AA LOCHEM
A181: 179 | B181: Loon op Zand | C181: 1 | D181: Postbus 7, 5170 AA KAATSHEUVEL
A182: 180 | B182: Lopik | C182: 4 | D182: Postbus 50, 3410 CB LOPIK
A183: 181 | B183: Loppersum | C183: 3 | D183: Postbus 25, 9919 ZG LOPPERSUM
A184: 182 | B184: Losser | C184: 1 | D184: Postbus 90, 7580 AB LOSSER
A185: 183 | B185: Maasdriel | C185: 1 | D185: Postbus 10000, 5330 GA KERKDRIEL
A186: 184 | B186: Maasgouw | C186: 1 | D186: Postbus 7000, 6050 AA MAASBRACHT
A187: 185 | B187: Maassluis | C187: 3 | D187: Postbus 55, 3140 AB MAASSLUIS
A188: 186 | B188: Maastricht | C188: 1 | D188: Postbus 1992, 6201 BZ MAASTRICHT
A189: 187 | B189: Medemblik | C189: 5 | D189: Postbus 7, 1670 AA MEDEMBLIK
A190: 188 | B190: Meerssen | C190: 1 | D190: Postbus 90, 6230 AB MEERSSEN
A191: 189 | B191: Meierijstad | C191: 1 | D191: Postbus 10.001, 5460 DA VEGHEL
A192: 190 | B192: Meppel | C192: 1 | D192: Postbus 501, 7940 AM MEPPEL
A193: 191 | B193: Middelburg | C193: 1 | D193: Postbus 6000, 4330 LA MIDDELBURG
A194: 192 | B194: Midden-Delftland | C194: 5 | D194: Postbus 1, 2636 ZG SCHIPLUIDEN
A195: 193 | B195: Midden-Drenthe | C195: 1 | D195: Postbus 24, 9410 AA BEILEN
A196: 194 | B196: Midden-Groningen | C196: 1 | D196: Postbus 75, 9600 AB HOOGEZAND
A197: 195 | B197: Mill en Sint Hubert | C197: 1 | D197: Postbus 39, 5450 AA MILL
A198: 196 | B198: Moerdijk | C198: 1 | D198: Postbus 4, 4760 AA ZEVENBERGEN
A199: 197 | B199: Molenlanden | C199: 5 | D199: Postbus 5, 2970 AA BLESKENSGRAAF
A200: 198 | B200: Montferland | C200: 1 | D200: Postbus 47, 6940 BA DIDAM
... 165 more rows

Sheet INFO
C2: Werking "Rekenblad":
B3: - | C3: Door de groene posities in te vullen vindt de verrekening plaats volgens de "Richtlijn tarieven (graaf) werkzaamheden Telecom".
B4: - | C4: Om de bomen, struiken en het asfalt te kunnen verrekenen kan een projectprijs worden afgesproken en ingevoerd.
B5: - | C5: Door scrollen kan de gemeente worden ingesteld en daarna opgeslagen. Dus een éénmalige actie!
B6: - | C6: Tevens kan door scrollen de aard van de werkzaamheden worden ingesteld.
B7: - | C7: Door beide scrollbeweging uit te voeren worden de gemeente en de juiste tarieven ingesteld.
C9: Dit "Rekenblad" is een uitgave van de Vereniging van Nederlandse Gemeenten en is gebaseerd op:
C10: "RICHTLIJN tarieven (graaf)werkzaamheden Telecom", uitgegeven: 12 maart 2004
C11: Richtlijn voor gemeenten en aanbieders van telecom diensten ten behoeve van het berekenen van tarieven voor herstel, onderhoud, beheer- en
C12: degeneratiekosten bij (graaf)werkzaamheden door aanbieders, in openbare gronden die in eigendom of beheer zijn van gemeenten.
B13: - | C13: De Richtlijn bevat: | E13: definities, rekenmethodiek en tarieven
B14: - | C14: In de tarieven wordt geen onderscheid gemaakt tussen lasgaten en sleuven. Alle werkzaamheden worden berekend per vierkante meter.
C15: De degeneratie vergoeding wordt verrekend per strekkende meter.
B16: - | C16: Bij de berekening van de degeneratie vergoeding wordt gebruik gemaakt van de per 1 januari 2001 gehanteerde berekenwijze voor de
C17: maatstaf bodemgesteldheid ten behoeve van de algemene uitkering uit het gemeentefonds. De bodempercentages t.g.v. samenvoegingen van gemeenten
C18: zijn berekend tot 1 januari van het voorafgaande jaar.
C20: Gebruik van dit rekenblad
B21: - | C21: De wijze van de sleufbreedte is als volgt gedefinieerd:
D22: - de werkelijke sleufbreedte, deze wordt tijdens de uitvoering gemeten
D23: * de werkelijke sleufbreedte wordt ingevoerd in het rekenblad
D24: * het rekenblad rekent met de oppervlakte (lengte x breedte) zoals ingevuld.
D25: * de gatvergroting wordt niet in oppervlak uitgedrukt maar in een toeslag van 20% op de uitvoeringskosten (en dus op alle tariefcomponenten)
D26: Geen sleufbreedte gemeten
D27: - de gemiddelde breedte van het grondverzet, gemeten als breedte van de toegepaste graafbak, naar boven afgerond op 5 cm,
D28: - met een minimum breedte voor tegelverharding van 30 cm en voor klinkerverharding van 20 cm.
B29: - | C29: De "Richtlijn" is van toepassing op het herstel van opgebroken bestrating.
B30: - | C30: In de "Richtlijn" is aangegeven wanneer de sleuf door de aanbieder moet worden gedicht en onder welke voorwaarden dit is toegestaan.
B31: - | C31: De werkzaamheden die de gemeente verricht en waarvoor bij het verlenen van het instemmingbesluit leges worden geheven, vallen niet
C32: onder de berekening van de beheerskosten in deze "Richtlijn".
B33: - | C33: In de rekenmethodiek van de "Richtlijn" zijn ook groenvoorzieningen opgenomen.
B34: - | C34: De "Richtlijn" bevat ook een degeneratievergoeding voor tegelverharding.
B35: - | C35: Per project is het aantal m2 bepalend voor de toepassing van tarief <15 m2 of >15 m2, afzonderlijk voor tegels en klinkers. Dus tegel- en
C36: klinkeroppervlakken niet bij elkaar optellen. Op het rekenblad gaat dat automatisch.
B37: - | C37: Meerdere kleine opbrekingen binnen 10 m (zoals huisaansluitingen) worden aangemerkt als één reparatie.
B38: - | C38: Op de tarieven is indexering van toepassing. Jaarlijks zal door de VNG een geïndexeerd "Rekenblad" tijdig ter beschikking worden gesteld.
C40: Afwijkende tarieven
B41: - | C41: Voor gefundeerde verharding en voor groenvoorzieningen wordt geen degeneratievergoeding berekend.
B42: - | C42: Wanneer er van band tot band wordt hersteld wordt er geen degeneratievergoeding berekend en geen gatvergroting van 20%. Het
C43: rekenblad is in deze gevallen niet toepasbaar. Maak per project afspraken, bij voorkeur vooruitlopend op de uitvoering.
B44: - | C44: Voor gesloten verhardingen zoals asfalt, cementbeton, grootschalige en kleinschalige verhardingselementen, plantsoenen en bomen,
C45: dienen tussen de gemeente en de aanbieder op projectniveau, of zo mogelijk generiek, afspraken te worden gemaakt. Voor de verrekening
C46: kan het "rekenblad" worden gebruikt.
C48: Wijzigingen per 1-1-2018 (en per 1-1-2019 wijziging tarief bermen/gazons, als aangegeven)
B49: - | C49: De wijzigingen hebben geen invloed op de "Richtlijn tarieven (graaf) werkzaamheden Telecom", maar maken het rekenblad
C50: praktischer en overzichtelijker.
B51: - | C51: Naast Tarief C (Herstel door de gemeente vooraf gaande aan algehele herbestrating) is ook toegevoegd Tarief C1 (idem, herstel en onderhoud
C52: door aanbieder/netbeheerder) en Tarief C2 (idem, herstel door aanbieder/netbeheerder, onderhoud door gemeente).
B53: - | C53: De C-tarieven gelden alleen indien vooraf afgesproken en maximaal 1 jaar voor de geplande herbestrating.
B54: - | C54: Banden (trottoirbanden, opsluit- / koprolbanden) zijn nu opgenomen in de tarieven A, B1, enz. Zo wordt automatisch het juiste tarief berekend.
B55: - | C55: Het tarief voor bermen en gazons is herzien, waardoor per 1-1-2018 het minimum tarief t/m 50m2 is vervallen. De standaard 6% beheerkosten zijn toegevoegd.
C56: Ingaande 1-1-2019 zijn er 2 tarieven: tarief tot en met 15m2 per opbreking (minimum tarief 15 x m2-tarief) en het tarief per m2 boven de 15m2
C57: Bij analyse bleek dat er onvoldoende rekening mee was gehouden dat ca. 84% van de opbrekingen tot en met 15m2 zijn met een gemiddeld oppervlakte van 4 m2.
C58: Het onderscheid tussen herstel door gemeente (uitvoeringskosten + beheerkosten) en herstel door aanbieder/netbeheerder (beheerkosten) is gebleven.
C59: De keuze voor welk tarief voor bermen/gazons staat los van Tarief A, B1, enz, voor tegels en klinkers.
B60: - | C60: De tabel tarieven is toegevoegd. (Zie uitleg hieronder). Hierin staan alle tariefcomponenten per kostensoort. De herkomst is de berekening
C61: in het bestand tariefbladen-slechte-bodem-vng waar een gelijke tabel als resultaat van de berekening van de tarieven is te vinden.
B62: - | C62: Steeds meer gemeenten hanteren deze tarieven ook voor netbeheerders, niet telecombedrijven. Als te verrekenen oppervlakte wordt dan
C63: vrijwel altijd de werkelijk opgebroken bestrating gehanteerd. Deze mogelijkheid is toegevoegd.
C65: Nadere uitleg Tabel tarieven
B66: - | C66: Per kostensoort (Uitvoerings-, Onderhouds-, Degeneratie- en Beheerskosten) wordt met een kruisje aangegeven of dit van toepassing
C67: is per tarief (A, B1, B2, C, C1 en C2).
B68: - | C68: In de kolommen daarachter staan de tarieven van die kostensoort en omschrijving per bodemcategorie.
B69: - | C69: Wanneer het rekenblad gevuld wordt (keuze gemeente en soort tarief) verschijnen in de laatste kolom de tarieven die van toepassing zijn,
C70: deze worden gebruikt voor de berekening op het rekenblad voor de specificatie.
C72: Toepassing:
C73: De VNG en een representatieve vertegenwoordiging van de Telecomsector hebben als: "Packed deal" overeenstemming bereikt over de
C74: rekenmethodiek en de tarieven van de "Richtlijn", die integraal behoort te worden toegepast.
C75: Met de vertegenwoordigers van de netbeheerders (Netbeheer nederland en VEWIN) is een aanvullende 'handreiking' opgesteld voor het toepassen van deze tarieven.

Sheet Tabel Tarieven
A1: Kostensoort | B1: Tariefgroepen | I1: Omschrijving | J1: Eenheid | K1: Bedragen 2021 v1 per kostensoort per bodemcategorie | R1: Actueel tarief
A2: Uitvoeringskosten | B2: X in kolom is van toepassing bij deze tariefgroep | I2: Klinkers, tegels, trottoirband, opsluit/koprolband, berm/gazon. Eenheid: per m2, m1, bij degenaratie per reparatie of m1 sleuf | K2: Afh. Cat.?: | L2: Bij nee zijn de tarieven gelijk in elke kolom: onafhankelijk categorie | R2: Tarief | S2: =Rekenblad!B35 -> 1
A3: Onderhoudskosten | K3: > Zie > tabblad >>>> | L3: < 50% slechte bodem | M3: 50-60% slechte bodem | N3: 60-70% slechte bodem | O3: 70-80% slechte bodem | P3: > 80% slechte bodem | R3: Categorie | S3: =Rekenblad!B36 -> 1
A4: Degeneratiekosten | B4: 1 | C4: 2 | D4: 3 | E4: 4 | F4: 5 | G4: 6 | H4: - | R4: Toelichting: deze waarden worden gebruikt in het Rekenblad en zijn afhankelijk van de invoer op het Rekenblad
A5: Beheerkosten | B5: A | C5: B1 | D5: B2 | E5: C | F5: C1 | G5: C2 | H5: D | K5: Afh. Cat.? | L5: 1 | M5: 2 | N5: 3 | O5: 4 | P5: 5
A6: Uitvoeringskosten | B6: X | I6: klinkers <= 15 m2 | J6: m2 | K6: Nee | L6: 31.08 | M6: 31.08 | N6: 31.08 | O6: 31.08 | P6: 31.08 | R6: =IF($S$2=1,INDEX($L$6:$P$45,,$S$3),0)+R14 -> 31.08 | S6: Uitvoeringskosten C opgeteld regel 14
A7: Uitvoeringskosten | B7: X | I7: klinkers >15 m2 | J7: m2 | K7: Nee | L7: 25.43 | M7: 25.43 | N7: 25.43 | O7: 25.43 | P7: 25.43 | R7: =IF($S$2=1,INDEX($L$6:$P$45,,$S$3),0)+R15 -> 25.43 | S7: Uitvoeringskosten C opgeteld regel 15
A8: Uitvoeringskosten | B8: X | I8: klinkers >100 m2 | J8: m2 | K8: Nee | L8: 22.6 | M8: 22.6 | N8: 22.6 | O8: 22.6 | P8: 22.6 | R8: =IF($S$2=1,INDEX($L$6:$P$45,,$S$3),0) -> 22.6
A9: Uitvoeringskosten | B9: X | I9: tegels <= 15 m2 | J9: m2 | K9: Nee | L9: 24.67 | M9: 24.67 | N9: 24.67 | O9: 24.67 | P9: 24.67 | R9: =IF($S$2=1,INDEX($L$6:$P$45,,$S$3),0)+R16 -> 24.67 | S9: Uitvoeringskosten C opgeteld regel 16
A10: Uitvoeringskosten | B10: X | I10: tegels >15 m2 | J10: m2 | K10: Nee | L10: 19.02 | M10: 19.02 | N10: 19.02 | O10: 19.02 | P10: 19.02 | R10: =IF($S$2=1,INDEX($L$6:$P$45,,$S$3),0)+R17 -> 19.02 | S10: Uitvoeringskosten C opgeteld regel 17
A11: Uitvoeringskosten | B11: X | I11: tegels >100 m2 | J11: m2 | K11: Nee | L11: 17.88 | M11: 17.88 | N11: 17.88 | O11: 17.88 | P11: 17.88 | R11: =IF($S$2=1,INDEX($L$6:$P$45,,$S$3),0) -> 17.88
A12: Uitvoeringskosten | B12: X | I12: trottoirband | J12: m1 | K12: Nee | L12: 11.61 | M12: 11.61 | N12: 11.61 | O12: 11.61 | P12: 11.61 | R12: =IF($S$2=1,INDEX($L$6:$P$45,,$S$3),0)+R18 -> 11.61 | S12: Uitvoeringskosten C opgeteld regel 18
A13: Uitvoeringskosten | B13: X | I13: opsluit/koprolband | J13: m1 | K13: Nee | L13: 9.25 | M13: 9.25 | N13: 9.25 | O13: 9.25 | P13: 9.25 | R13: =IF($S$2=1,INDEX($L$6:$P$45,,$S$3),0)+R19 -> 9.25 | S13: Uitvoeringskosten C opgeteld regel 19
A14: Uitvoeringskosten | E14: X | I14: klinkers <= 15 m2 | J14: m2 | K14: Nee | L14: 12.95 | M14: 12.95 | N14: 12.95 | O14: 12.95 | P14: 12.95 | R14: =IF($S$2=4,INDEX($L$6:$P$45,,$S$3),0) -> 0 | S14: Is opgeteld bij regel 6
A15: Uitvoeringskosten | E15: X | I15: klinkers >15 m2 | J15: m2 | K15: Nee | L15: 10.6 | M15: 10.6 | N15: 10.6 | O15: 10.6 | P15: 10.6 | R15: =IF($S$2=4,INDEX($L$6:$P$45,,$S$3),0) -> 0 | S15: Is opgeteld bij regel 7
A16: Uitvoeringskosten | E16: X | I16: tegels <= 15 m2 | J16: m2 | K16: Nee | L16: 10.28 | M16: 10.28 | N16: 10.28 | O16: 10.28 | P16: 10.28 | R16: 0 | S16: Is opgeteld bij regel 9
A17: Uitvoeringskosten | E17: X | I17: tegels >15 m2 | J17: m2 | K17: Nee | L17: 7.93 | M17: 7.93 | N17: 7.93 | O17: 7.93 | P17: 7.93 | R17: 0 | S17: Is opgeteld bij regel 10
A18: Uitvoeringskosten | E18: X | I18: trottoirband | J18: m1 | K18: Nee | L18: 4.84 | M18: 4.84 | N18: 4.84 | O18: 4.84 | P18: 4.84 | R18: 0 | S18: Is opgeteld bij regel 12
A19: Uitvoeringskosten | E19: X | I19: opsluit/koprolband | J19: m1 | K19: Nee | L19: 3.85 | M19: 3.85 | N19: 3.85 | O19: 3.85 | P19: 3.85 | R19: 0 | S19: Is opgeteld bij regel 13
A20: Uitvoeringskosten | H20: X | I20: berm / gazon <= 15 m2, herstel gemeente | J20: opbr. | K20: Nee | L20: 32.4 | M20: 32.4 | N20: 32.4 | O20: 32.4 | P20: 32.4 | R20: =INDEX($L$6:$P$45,,$S$3) -> 32.4
A21: Uitvoeringskosten | H21: X | I21: berm / gazon >15 m2, herstel gemeente | J21: m2 | K21: Nee | L21: 2.16 | M21: 2.16 | N21: 2.16 | O21: 2.16 | P21: 2.16 | R21: 2.16
A22: Onderhoudskosten | B22: X | D22: X | G22: X | I22: klinkers <= 15 m2 | J22: m2 | K22: Ja | L22: 2.3 | M22: 2.6 | N22: 3.48 | O22: 5.3 | P22: 5.91 | R22: =IF(OR($S$2=1,$S$2=3,$S$2=4,$S$2=6),INDEX($L$6:$P$45,,$S$3),0) -> 2.3
A23: Onderhoudskosten | B23: X | D23: X | G23: X | I23: klinkers >15 m2 | J23: m2 | K23: Ja | L23: 1.88 | M23: 2.12 | N23: 2.85 | O23: 4.34 | P23: 4.83 | R23: =IF(OR($S$2=1,$S$2=3,$S$2=4,$S$2=6),INDEX($L$6:$P$45,,$S$3),0) -> 1.88
A24: Onderhoudskosten | B24: X | I24: klinkers >100 m2 | J24: m2 | K24: Ja | L24: 1.67 | M24: 1.89 | N24: 2.53 | O24: 3.85 | P24: 4.29 | R24: =IF($S$2=1,INDEX($L$6:$P$45,,$S$3),0) -> 1.67
A25: Onderhoudskosten | B25: X | D25: X | G25: X | I25: tegels <= 15 m2 | J25: m2 | K25: Ja | L25: 1.27 | M25: 1.46 | N25: 2.02 | O25: 3.33 | P25: 3.76 | R25: =IF(OR($S$2=1,$S$2=3,$S$2=4,$S$2=6),INDEX($L$6:$P$45,,$S$3),0) -> 1.27
A26: Onderhoudskosten | B26: X | D26: X | G26: X | I26: tegels >15 m2 | J26: m2 | K26: Ja | L26: 0.98 | M26: 1.12 | N26: 1.56 | O26: 2.57 | P26: 2.9 | R26: =IF(OR($S$2=1,$S$2=3,$S$2=4,$S$2=6),INDEX($L$6:$P$45,,$S$3),0) -> 0.98
A27: Onderhoudskosten | B27: X | I27: tegels >100 m2 | J27: m2 | K27: Ja | L27: 0.92 | M27: 1.06 | N27: 1.47 | O27: 2.41 | P27: 2.73 | R27: =IF($S$2=1,INDEX($L$6:$P$45,,$S$3),0) -> 0.92
A28: Degeneratiekosten | B28: X | C28: X | D28: X | I28: klinkers <= 15 m2 | J28: reparatie | K28: Ja | L28: 8.39 | M28: 11.8 | N28: 22.03 | O28: 33.83 | P28: 41.44 | R28: =IF($S$2<4,INDEX($L$6:$P$45,,$S$3),0) -> 8.39
A29: Degeneratiekosten | B29: X | C29: X | D29: X | I29: klinkers >15 m2 | J29: m1 sleuf | K29: Ja | L29: 2.79 | M29: 3.92 | N29: 7.3 | O29: 14.54 | P29: 16.95 | R29: =IF($S$2<4,INDEX($L$6:$P$45,,$S$3),0) -> 2.79
A30: Degeneratiekosten | B30: X | I30: klinkers >100 m2 | J30: m1 sleuf | K30: Ja | L30: 2.48 | M30: 3.48 | N30: 6.48 | O30: 12.92 | P30: 15.07 | R30: =IF($S$2=1,INDEX($L$6:$P$45,,$S$3),0) -> 2.48
A31: Degeneratiekosten | B31: X | C31: X | D31: X | I31: tegels <= 15 m2 | J31: reparatie | K31: Ja | L31: 0 | M31: 0.83 | N31: 3.33 | O31: 9.58 | P31: 11.66 | R31: =IF($S$2<4,INDEX($L$6:$P$45,,$S$3),0) -> 0
A32: Degeneratiekosten | B32: X | C32: X | D32: X | I32: tegels >15 m2 | J32: m1 sleuf | K32: Ja | L32: 0 | M32: 0.16 | N32: 0.64 | O32: 7.86 | P32: 10.27 | R32: =IF($S$2<4,INDEX($L$6:$P$45,,$S$3),0) -> 0
A33: Degeneratiekosten | B33: X | I33: tegels >100 m2 | J33: m1 sleuf | K33: Ja | L33: 0 | M33: 0.15 | N33: 0.6 | O33: 7.39 | P33: 9.66 | R33: =IF($S$2=1,INDEX($L$6:$P$45,,$S$3),0) -> 0
A34: Beheerskosten | B34: X | C34: X | D34: X | E34: X | F34: X | G34: X | I34: klinkers <= 15 m2 | J34: m2 | K34: Nee | L34: 1.86 | M34: 1.86 | N34: 1.86 | O34: 1.86 | P34: 1.86 | R34: =INDEX($L$6:$P$45,,$S$3) -> 1.86
A35: Beheerskosten | B35: X | C35: X | D35: X | E35: X | F35: X | G35: X | I35: klinkers >15 m2 | J35: m2 | K35: Nee | L35: 1.53 | M35: 1.53 | N35: 1.53 | O35: 1.53 | P35: 1.53 | R35: 1.53
A36: Beheerskosten | B36: X | I36: klinkers >100 m2 | J36: m2 | K36: Nee | L36: 1.36 | M36: 1.36 | N36: 1.36 | O36: 1.36 | P36: 1.36 | R36: 1.36
A37: Beheerskosten | B37: X | C37: X | D37: X | E37: X | F37: X | G37: X | I37: tegels <= 15 m2 | J37: m2 | K37: Nee | L37: 1.48 | M37: 1.48 | N37: 1.48 | O37: 1.48 | P37: 1.48 | R37: 1.48
A38: Beheerskosten | B38: X | C38: X | D38: X | E38: X | F38: X | G38: X | I38: tegels >15 m2 | J38: m2 | K38: Nee | L38: 1.14 | M38: 1.14 | N38: 1.14 | O38: 1.14 | P38: 1.14 | R38: 1.14
A39: Beheerskosten | B39: X | I39: tegels >100 m2 | J39: m2 | K39: Nee | L39: 1.07 | M39: 1.07 | N39: 1.07 | O39: 1.07 | P39: 1.07 | R39: 1.07
A40: Beheerskosten | B40: X | C40: X | D40: X | E40: X | F40: X | G40: X | I40: trottoirband | J40: m1 | K40: Nee | L40: 0.7 | M40: 0.7 | N40: 0.7 | O40: 0.7 | P40: 0.7 | R40: 0.7
A41: Beheerskosten | B41: X | C41: X | D41: X | E41: X | F41: X | G41: X | I41: opsluit/koprolband | J41: m1 | K41: Nee | L41: 0.56 | M41: 0.56 | N41: 0.56 | O41: 0.56 | P41: 0.56 | R41: 0.56
A42: Beheerskosten | H42: X | I42: berm / gazon <= 15 m2, herstel gemeente | J42: reparatie | K42: Nee | L42: 1.95 | M42: 1.95 | N42: 1.95 | O42: 1.95 | P42: 1.95 | R42: =INDEX($L$6:$P$45,,$S$3) -> 1.95
A43: Beheerskosten | H43: X | I43: berm / gazon >15 m2, herstel gemeente | J43: m2 | K43: Nee | L43: 0.13 | M43: 0.13 | N43: 0.13 | O43: 0.13 | P43: 0.13 | R43: 0.13
A44: Beheerskosten | H44: X | I44: berm / gazon <= 15 m2, herstel aanbieder | J44: reparatie | K44: Nee | L44: 1.95 | M44: 1.95 | N44: 1.95 | O44: 1.95 | P44: 1.95 | R44: =INDEX($L$6:$P$45,,$S$3) -> 1.95
A45: Beheerskosten | H45: X | I45: berm / gazon >15 m2, herstel aanbieder | J45: m2 | K45: Nee | L45: 0.13 | M45: 0.13 | N45: 0.13 | O45: 0.13 | P45: 0.13 | R45: 0.13
A47: De bedragen (L6..P41) vanuit de bron: tabblad "Tabel Tarieven" van bestand tariefbladen-slechte-bodem-vng-JJJJ kopiëren (met plakken - waarde) naar dit tabblad (in L6..P45). Kopieer K1 naar K1 (plakken waarde).
Q522: 2.14 | R522: 7.81 | S522: 0 | T522: 1.74
Q523: 1.75 | R523: 0 | S523: 2.59 | T523: 1.42
Q524: 1.55 | R524: 0 | S524: 2.3 | T524: 1.26
Q525: 1.18 | R525: 0 | S525: 0 | T525: 1.37
Q526: 0.91 | R526: 0 | S526: 0 | T526: 1.06
Q527: 0.85 | R527: 0 | S527: 0 | T527: 0.99
T528: 0.65
T529: 0.51
R530: 7.81 | S530: 0 | T530: 1.74
R531: 0 | S531: 2.59 | T531: 1.42
R532: 0 | S532: 0 | T532: 1.37
R533: 0 | S533: 0 | T533: 1.06
T534: 0.65
T535: 0.51
Q536: 2.14 | R536: 7.81 | S536: 0 | T536: 1.74
Q537: 1.75 | R537: 0 | S537: 2.59 | T537: 1.42
Q538: 1.18 | R538: 0 | S538: 0 | T538: 1.37
Q539: 0.91 | R539: 0 | S539: 0 | T539: 1.06
T540: 0.65
T541: 0.51
Q542: 2.14 | T542: 1.74
Q543: 1.75 | T543: 1.42
Q544: 1.18 | T544: 1.37
Q545: 0.91 | T545: 1.06
T546: 0.65
T547: 0.51
T548: 1.74
T549: 1.42
T550: 1.37
T551: 1.06
T552: 0.65
T553: 0.51
Q554: 2.14 | T554: 1.74
Q555: 1.75 | T555: 1.42
Q556: 1.18 | T556: 1.37
Q557: 0.91 | T557: 1.06
T558: 0.65
T559: 0.51
T560: 0.11
T561: 0.11
Q562: 2.41 | R562: 10.98 | S562: 0 | T562: 1.74
Q563: 1.97 | R563: 0 | S563: 3.64 | T563: 1.42
Q564: 1.75 | R564: 0 | S564: 3.24 | T564: 1.26
Q565: 1.35 | R565: 0.77 | S565: 0 | T565: 1.37
Q566: 1.04 | R566: 0 | S566: 0.15 | T566: 1.06
Q567: 0.98 | R567: 0 | S567: 0.14 | T567: 0.99
R568: 10.98 | S568: 0 | T568: 1.74
R569: 0 | S569: 3.64 | T569: 1.42
R570: 0.77 | S570: 0 | T570: 1.37
R571: 0 | S571: 0.15 | T571: 1.06
Q572: 2.41 | R572: 10.98 | S572: 0 | T572: 1.74
Q573: 1.97 | R573: 0 | S573: 3.64 | T573: 1.42
Q574: 1.35 | R574: 0.77 | S574: 0 | T574: 1.37
Q575: 1.04 | R575: 0 | S575: 0.15 | T575: 1.06
Q576: 2.41 | T576: 1.74
Q577: 1.97 | T577: 1.42
Q578: 1.35 | T578: 1.37
Q579: 1.04 | T579: 1.06
T580: 1.74
T581: 1.42
T582: 1.37
T583: 1.06
Q584: 2.41 | T584: 1.74
Q585: 1.97 | T585: 1.42
Q586: 1.35 | T586: 1.37
Q587: 1.04 | T587: 1.06
Q588: 3.24 | R588: 20.5 | S588: 0 | T588: 1.74
Q589: 2.65 | R589: 0 | S589: 6.79 | T589: 1.42
Q590: 2.35 | R590: 0 | S590: 6.03 | T590: 1.26
Q591: 1.88 | R591: 3.09 | S591: 0 | T591: 1.37
Q592: 1.45 | R592: 0 | S592: 0.6 | T592: 1.06
Q593: 1.36 | R593: 0 | S593: 0.56 | T593: 0.99
R594: 20.5 | S594: 0 | T594: 1.74
R595: 0 | S595: 6.79 | T595: 1.42
R596: 3.09 | S596: 0 | T596: 1.37
R597: 0 | S597: 0.6 | T597: 1.06
Q598: 3.24 | R598: 20.5 | S598: 0 | T598: 1.74
Q599: 2.65 | R599: 0 | S599: 6.79 | T599: 1.42
Q600: 1.88 | R600: 3.09 | S600: 0 | T600: 1.37
Q601: 1.45 | R601: 0 | S601: 0.6 | T601: 1.06
Q602: 3.24 | T602: 1.74
Q603: 2.65 | T603: 1.42
Q604: 1.88 | T604: 1.37
Q605: 1.45 | T605: 1.06
T606: 1.74
T607: 1.42
T608: 1.37
T609: 1.06
Q610: 3.24 | T610: 1.74
Q611: 2.65 | T611: 1.42
Q612: 1.88 | T612: 1.37
Q613: 1.45 | T613: 1.06
Q614: 4.93 | R614: 31.48 | S614: 0 | T614: 1.74
Q615: 4.03 | R615: 0 | S615: 13.52 | T615: 1.42
Q616: 3.58 | R616: 0 | S616: 12.01 | T616: 1.26
Q617: 3.09 | R617: 8.89 | S617: 0 | T617: 1.37
Q618: 2.38 | R618: -,-- | S618: 7.29 | T618: 1.06
Q619: 2.24 | R619: 0 | S619: 6.86 | T619: 0.99
R620: 31.48 | S620: 0 | T620: 1.74
R621: 0 | S621: 13.52 | T621: 1.42
R622: 8.89 | S622: 0 | T622: 1.37
R623: -,-- | S623: 7.29 | T623: 1.06
Q624: 4.93 | R624: 31.48 | S624: 0 | T624: 1.74
Q625: 4.03 | R625: 0 | S625: 13.52 | T625: 1.42
Q626: 3.09 | R626: 8.89 | S626: 0 | T626: 1.37
Q627: 2.38 | R627: -,-- | S627: 7.29 | T627: 1.06
Q628: 4.93 | T628: 1.74
Q629: 4.03 | T629: 1.42
Q630: 3.09 | T630: 1.37
Q631: 2.38 | T631: 1.06
T632: 1.74
T633: 1.42
T634: 1.37
T635: 1.06
Q636: 4.93 | T636: 1.74
Q637: 4.03 | T637: 1.42
Q638: 3.09 | T638: 1.37
Q639: 2.38 | T639: 1.06
Q640: 5.49 | R640: 38.56 | S640: 0 | T640: 1.74
Q641: 4.49 | R641: 0 | S641: 15.77 | T641: 1.42
Q642: 3.99 | R642: 0 | S642: 14.01 | T642: 1.26
Q643: 3.49 | R643: 10.83 | S643: 0 | T643: 1.37
Q644: 2.69 | R644: 0 | S644: 9.53 | T644: 1.06
Q645: 2.53 | R645: 0 | S645: 8.95 | T645: 0.99
R646: 38.56 | S646: 0 | T646: 1.74
R647: 0 | S647: 15.77 | T647: 1.42
R648: 10.83 | S648: 0 | T648: 1.37
R649: 0 | S649: 9.53 | T649: 1.06
Q650: 5.49 | R650: 38.56 | S650: 0 | T650: 1.74
Q651: 4.49 | R651: 0 | S651: 15.77 | T651: 1.42
Q652: 3.49 | R652: 10.83 | S652: 0 | T652: 1.37
Q653: 2.69 | R653: 0 | S653: 9.53 | T653: 1.06
Q654: 5.49 | T654: 1.74
Q655: 4.49 | T655: 1.42
Q656: 3.49 | T656: 1.37
Q657: 2.69 | T657: 1.06
T658: 1.74
T659: 1.42
T660: 1.37
T661: 1.06
Q662: 5.49 | T662: 1.74
Q663: 4.49 | T663: 1.42
Q664: 3.49 | T664: 1.37
Q665: 2.69 | T665: 1.06
